Cogmind - Beta 13 @@@ ROGUE MODE // 2024.05.31 @ 18:02:49 Player: Bace Troncons Result: Destroyed by Y-45 Defender with Heavy Assault Rifle Performance ------------- Evolutions (0) 0 Regions Visited (2) 400 Robots Destroyed (25) 125 Value Destroyed (646) 646 Prototype IDs (0) 0 Alien Tech Used (0) 0 Bonus (0) 0 TOTAL SCORE: 1171 Bonus ------- None Cogmind --------- Core Integrity 0/250 Matter 280/300 Energy 200/200 System Corruption 1% Temperature Cool (9) Movement Rolling (110) Location -10/Subcaves Parts ------- > --- POWER (1) -------- Subdweller Power Source > --- PROPULSION (2) --- Subdweller Monowheel Subdweller Monowheel > --- UTILITY (2) ------ Large Storage Unit Makeshift Light Armor Plating > --- WEAPON (2) ------- Particle Gun > --- INVENTORY (15) --- Ion Engine Light Ion Engine Weight Redist. System Terrain Scanner Seismic Detector Light Armor Plating Light Armor Plating Grenade Launcher Peak State ------------ > --- POWER ------------ Subdweller Power Source > --- PROPULSION ------- Subdweller Monowheel Subdweller Monowheel > --- UTILITY ---------- Large Storage Unit Makeshift Light Armor Plating > --- WEAPON ----------- Particle Gun Barrage Gun > --- INVENTORY -------- Ion Engine Light Ion Engine Weight Redist. System Terrain Scanner Seismic Detector Light Armor Plating Light Armor Plating Grenade Launcher [Rating: 16] Favorites ----------- Power Light Nuclear Core Engine Light Ion Engine Power Core Light Nuclear Core Propulsion Light Treads Treads Light Treads Wheel Subdweller Monowheel Utility Large Storage Unit Device Improved Terrain Scanner Storage Large Storage Unit Protection Light Armor Plating Weapon Light Assault Rifle Energy Gun Particle Gun Ballistic Gun Light Assault Rifle Launcher Grenade Launcher Build | -11 -10 -10 ------- Run | Yrd Mat Sub Slots Evolved . | . . . Power . | . . . Propulsion . | . . . Utility . | . . . Weapon . | . . . Parts Attached 23 | 7 10 6 Power 5 | 1 3 1 Engine 4 | 1 2 1 Core 1 | . 1 . Reactor . | . . . Propulsion 4 | 2 . 2 Treads 2 | 2 . . Leg . | . . . Wheel 2 | . . 2 Hover . | . . . Flight . | . . . Utility 5 | 2 2 1 Device 1 | 1 . . Storage 2 | 1 1 . Processor . | . . . Hackware . | . . . Protection 2 | . 1 1 Artifact . | . . . Weapon 9 | 2 5 2 Energy Gun 3 | 1 1 1 Energy Cannon . | . . . Ballistic Gun 4 | 1 2 1 Ballistic Cannon . | . . . Launcher 2 | . 2 . Special Weapon . | . . . Impact Weapon . | . . . Slashing Weapon . | . . . Piercing Weapon . | . . . Special Melee Weapon . | . . . Unidentified Prototypes . | . . . Parts Lost 9 | . 6 3 Power 3 | . 2 1 Propulsion 2 | . 1 1 Utility 1 | . 1 . Weapon 3 | . 2 1 Highest Loss Streak 2 | . 2 2 To Critical Strikes . | . . . Average Slot Usage (%) 81 | . 81 81 Engine 4 | . 5 2 Core 8 | . 7 10 Treads 14 | . 17 10 Wheel 2 | . . 5 Device 1 | . 2 . Storage 14 | . 14 14 Protection 9 | . 7 14 Energy Gun 3 | . 2 5 Ballistic Gun 12 | . 14 8 Launcher 8 | . 9 8 Naked Turns . | . . . Heaviest Build 35 | 11 32 35 Greatest Support 40 | 40 40 40 Greatest Overweight (x) 9 | . 1 9 Average Overweight (x) . | . . . Largest Inventory Capacity 15 | 8 15 15 Average Capacity 13 | 7 12 15 Most Carried 8 | 5 7 8 Average Carried 5 | 2 5 7 Final Capacity 15 | 8 15 15 Final Carried 8 | 3 7 8 Class Distribution -------------------- 93% | Mutant 6% | Scavenger-Mutant Dominant Class ---------------- Mutant | -10/Materials Mutant | -10/Subcaves Resources | -11 -10 -10 ----------- Run | Yrd Mat Sub Matter Collected 671 | 276 176 219 Remotely . | . . . Salvage Created 738 | 92 514 132 Parts 49 | 6 35 8 Haulers Intercepted 1 | . 1 . Recyclers Shooed 1 | . 1 . Parts Field Recycled . | . . . Retrieved Matter . | . . . Parts Self-Destructed . | . . . Prevented . | . . . Kills | -11 -10 -10 ------- Run | Yrd Mat Sub Combat Hostiles Destroyed 18 | . 15 3 Guns 12 | . 9 3 AOE 6 | . 6 . Classes Destroyed 7 | 2 4 1 Tunneler 4 | 2 2 . Hauler 1 | . 1 . Recycler 1 | 1 . . Operator 1 | . 1 . Swarmer 3 | . 3 . Grunt 12 | . 12 . Subdweller 3 | . . 3 Best Kill Streak 6 | 2 6 2 Combat Bots Only 5 | . 5 2 Max Kills in Single Turn 2 | 1 2 1 Gunslinging . | . . . Exploded 2 | . 2 . Melee . | . . . Uniques/NPCs Destroyed . | . . . Combat | -11 -10 -10 -------- Run | Yrd Mat Sub Hostile Shots Fired 100 | . 81 19 Missed 22 | . 21 1 Damage Taken 1245 | . 806 439 Core 261 | . 172 89 Absorbed by Shields . | . . . Core Remaining (%) 100 | 100 . . Volleys Fired 103 | 6 78 19 Largest 2 | 2 2 2 Hottest 95 | 60 85 95 Shots Fired 153 | 12 113 28 Gun 137 | 12 104 21 Cannon . | . . . Launcher 16 | . 9 7 Special . | . . . Kinetic 103 | 6 89 8 Thermal 34 | 6 15 13 Explosive 16 | . 9 7 Electromagnetic . | . . . Robot Hit Streak 18 | 4 10 18 Robot Miss Streak 3 | 3 2 1 Penetration Max . | . . . Secondary Targets 2 | . 2 . Max Gunslinging Chain 1 | . 1 . Shots Hit Robots 95 | 6 71 18 Core Hits 52 | 4 41 7 Critical Kills . | . . . Critical Parts Destroyed . | . . . Critical Strikes . | . . . Melee Attacks . | . . . Impact . | . . . Slashing . | . . . Piercing . | . . . Sneak Attacks . | . . . Combat Hostiles . | . . . Follow-up Attacks . | . . . Damage Inflicted 1608 | 58 1252 298 Guns 960 | 58 621 281 Cannons . | . . . Explosions 645 | . 628 17 Melee . | . . . Ramming 3 | . 3 . Kinetic 668 | 26 543 99 Thermal 292 | 32 78 182 Explosive 645 | . 628 17 Electromagnetic . | . . . Impact . | . . . Slashing . | . . . Piercing . | . . . Highest Corruption 1 | . 1 1 Average Corruption 1 | . 1 1 Corruption Purged . | . . . Corruption Blocked . | . . . Effects 10 | . 5 5 Message Errors 4 | . 4 . Matter Fused 3 | . 1 2 Heat Flow Errors 1 | . . 1 Energy Discharges 1 | . . 1 Parts Rejected 1 | . . 1 Overload Shots . | . . . Overflow Damage 30 | . 30 . Projectiles . | . . . Explosions 30 | . 30 . Melee . | . . . Knockbacks . | . . . Impact . | . . . Kinetic . | . . . Secondary . | . . . Self-Inflicted Damage 154 | . 118 36 Shots 4 | . 2 2 Rammed 1 | . 1 . Targets Rammed 1 | . 1 . Kicked . | . . . Crushed . | . . . Highest Temperature 115 | 20 115 82 Average Temperature 29 | 13 34 17 Received Heat Transfer 432 | . 375 57 Siege Activations . | . . . Robots Corrupted . | . . . Combat Hostiles . | . . . Parts Fried . | . . . Impact Corruptions . | . . . Robots Melted . | . . . Combat Hostiles . | . . . Parts Melted 1 | . 1 . Heat Transferred 694 | 75 175 444 Parts Sabotaged . | . . . Parts Stolen . | . . . Parts Stripped . | . . . Power Chain Reactions . | . . . Alert | -11 -10 -10 ------- Run | Yrd Mat Sub Peak Influence 227 | 15 227 . Initial 9 | . 9 . Average 95 | 6 105 . Maximum Alert Level 1 | . 1 . Low Security (%) 75 | 100 73 . Level 1 24 | . 26 . Level 2 . | . . . Level 3 . | . . . Level 4 . | . . . Level 5 . | . . . High Security . | . . . Max Security . | . . . Squads Dispatched 3 | . 3 . Investigation 1 | . 1 . Extermination . | . . . Reinforcement 2 | . 2 . Assault . | . . . Garrison . | . . . Intercept . | . . . Searches Triggered . | . . . Construction Impeded . | . . . Haulers Reinforced . | . . . Active Scanning Responses . | . . . Cargo Convoy Interrupts . | . . . Stealth | -11 -10 -10 --------- Run | Yrd Mat Sub Distress Signals 2 | . 2 . Communications Jammed . | . . . Distress Signals . | . . . Times Spotted 25 | . 21 4 Peak Tracking Total 5 | . 5 2 Tactical Retreats . | . . . Traps | -11 -10 -10 ------- Run | Yrd Mat Sub Traps Triggered 2 | . . 2 Indirectly . | . . . Trap Hack Attempts . | . . . Triggered . | . . . Disarmed . | . . . Reprogrammed . | . . . Reused . | . . . Traps Extracted . | . . . Installed . | . . . Triggered . | . . . Machines | -11 -10 -10 ---------- Run | Yrd Mat Sub Machines Disabled 1 | . 1 . Max in Single Turn 1 | . 1 . Machines Repaired . | . . . Machines Dismantled . | . . . Machines Sabotaged . | . . . Overloaded Fab Kills . | . . . Hacking | -11 -10 -10 --------- Run | Yrd Mat Sub Machines Accessed 3 | . 3 . Terminals 3 | . 3 . Fabricators . | . . . Repair Stations . | . . . Recycling Units . | . . . Scanalyzers . | . . . Garrison Access . | . . . Total Hacks 8 | . 8 . Successful 1 | . 1 . Failed 7 | . 7 . Catastrophic 3 | . 3 . Database Lockouts . | . . . Manual 2 | . 2 . Terminals 8 | . 8 . Fabricators . | . . . Repair Stations . | . . . Recycling Units . | . . . Scanalyzers . | . . . Garrison Access . | . . . Terminal Hacks 1 | . 1 . Zone Layout 1 | . 1 . Fabricator Hacks . | . . . Repair Station Hacks . | . . . Recycling Unit Hacks . | . . . Scanalyzer . | . . . Garrison Access Hacks . | . . . Unauthorized Hacks . | . . . Terminals . | . . . Fabricators . | . . . Repair Stations . | . . . Recycling Units . | . . . Scanalyzers . | . . . Garrison Access . | . . . Data Cores Recovered . | . . . Used . | . . . Hacking Detections 3 | . 3 . Full Trace Events 1 | . 1 . Feedback Events 1 | . 1 . Corruption 1 | . 1 . Feedback Blocked . | . . . Robot Schematics Acquired . | . . . Robots Built . | . . . Authchips . | . . . Time . | . . . Total Robot Build Rating . | . . . Part Schematics Acquired . | . . . Parts Built . | . . . Authchips . | . . . Time . | . . . Total Part Build Rating . | . . . Parts Repaired . | . . . Time . | . . . Parts Recycled . | . . . Recycled Matter . | . . . Retrieved Matter . | . . . Retrieved Components . | . . . Parts Scanalyzed . | . . . Part Schematics Acquired . | . . . Parts Damaged . | . . . Bothacking | -11 -10 -10 ------------ Run | Yrd Mat Sub Used RIF Installer . | . . . Robots Hacked . | . . . Non-combat . | . . . Combat . | . . . Robot Hacks Applied . | . . . Relay Couplers Released . | . . . Fabnet Peak Effective % . | . . . Robots Rewired . | . . . Allies Hacked . | . . . Hacks Repelled . | . . . Allies | -11 -10 -10 -------- Run | Yrd Mat Sub Total Allies . | . . . Largest Group . | . . . Highest-Rated Group . | . . . Highest-Rated Ally . | . . . Total Orders . | . . . Ally Attacks . | . . . Total Damage . | . . . Kills . | . . . Allies Corrupted . | . . . Allies Melted . | . . . Intel | -11 -10 -10 ------- Run | Yrd Mat Sub Robot Analysis Total . | . . . Derelict Logs Recovered 1 | . . 1 Drone Launches . | . . . Drone Recoveries . | . . . Exploration | -11 -10 -10 ------------- Run | Yrd Mat Sub Turns Passed 2193 | 137 1238 818 Spaces Moved 761 | 68 353 340 Core 8 | 4 . 4 Treads 643 | 64 353 226 Legs . | . . . Wheels 110 | . . 110 Hover . | . . . Flight . | . . . Fastest Speed 50 | 50 160 110 Average Speed 204 | 153 218 201 Slowest Speed 500 | 160 240 500 Overloaded Moves . | . . . Propulsion Burnouts . | . . . Robots Hopped . | . . . Cave-ins Triggered . | . . . Exploration Rate (%) 31 | 6 58 30 Regions Visited 2 Branch Regions 1 Pre-discovered Areas 1 | . . 1 Known Exits Taken . | . . . Unknown Exits Taken 2 | 1 1 . Scrap Searched 3 | . . 3 Spaces Dug 9 | . . 9 Terrain Destroyed 114 | . 74 40 Melee . | . . . Projectile . | . . . AOE 114 | . 74 40 Terrain Rammed . | . . . Walls Destroyed . | . . . Machines Disabled . | . . . Actions | -11 -10 -10 --------- Run | Yrd Mat Sub Total 1252 | 87 724 441 Wait 349 | . 274 75 Move 759 | 67 352 340 Hop . | . . . Pick Up 11 | 5 6 . Fast Attach 15 | 7 4 4 Attach 4 | . 3 1 Detach 3 | . 2 1 Swap 4 | . 3 1 Drop 3 | 2 1 . Fire 103 | 6 78 19 Melee . | . . . Ram . | . . . Kick . | . . . Crush 1 | . 1 . Escape Stasis . | . . . Rewire . | . . . Trap . | . . . Miscellaneous . | . . . Route ------- -11/Scrapyard -10/Materials (discovered 5 exits: [*Mat x3] / [*Min] / [*Sub]) -10/Subcaves (discovered 2 exits: [*Mat x2]) History --------- Turn | Location | Event 14 | -11/Scrapyard | Discovered new exit (range 15) 138 | -11/Scrapyard | Entered Materials 304 | -10/Materials | Build established: Mutant 315 | -10/Materials | Discovered new exit (range 9) 456 | -10/Materials | Discovered new exit (range 14) 593 | -10/Materials | Core integrity fell below 50% 815 | -10/Materials | Discovered new exit (range 8) 1084 | -10/Materials | Discovered new exit (range 3) 1326 | -10/Materials | Discovered new exit (range 4) 1376 | -10/Materials | Entered Subcaves 1400 | -10/Subcaves | Discovered new exit (range 13) 1560 | -10/Subcaves | Core integrity fell below 20% 1844 | -10/Subcaves | Disturbed a concealed Subdweller 2060 | -10/Subcaves | Discovered new exit (range 12) 2194 | -10/Subcaves | Destroyed by Y-45 Defender with Heavy Assault Rifle Last Messages --------------- 01938_ System corrupted: Matter fused (-7). 01968_ Acquired 8 matter. 01987_ Acquired derelict log, extracted data. World map updated: -9/Materials. 02007_ Lgt. Treads destroyed. 02007_ QH-EXB(R) destroyed. 02009_ Lgt. Nuclear Core destroyed. 02014_ GJ-8ZG(R) affixes Scrap Shield Fragment to Scrap Shield. 02015_ GJ-8ZG(R) destroyed. 02018_ Acquired 40 matter. 02023_ Acquired 6 matter. 02025_ CO-6WJ(u) tweaks Twisted Machinery. 02038_ Acquired Sub. Monowheel. 02044_ Acquired Sub. Power Source. 02047_ Acquired 30 matter. 02060_ EXIT=FOUND 02086_ XX-MSK(u) tweaks Twisted Machinery. 02166_ System corrupted: Matter fused (-8). 02185_ System corrupted: Barrage Gun rejected. Map ----- +----------------------------------------------------+ | ??????????????????????????????#"#### ## #??? | | ??????????????????????????????##""" #??? | | ????????????????????????????????# #??? | | ????????????????????????????????#### ##??? | | ??????????????????????????????????## #???# | | ??????????????????????????????????#" #?? # | | ??????????????????????????????????## #######? | | ???????????????????????????????????# ##?????# | | ???????????????????????????????????# ###### | | ???????????????????????????????????## | | ????????????????????????????????????#### | | ???????????????????????????????????????# | | ???????????????????????????????????????## ### | | ???????????????????????????????????????## ##???? | | ?????????????????????????????????????### ##???? | | ??????????????????????????????????#### ##### | | ??????????????????????????????????# ### # | | ???????????????????????????????#### ## # | | ???????????????????????????????# ## | | ???????????????????????????????## #? | | ????????????????????????????????# # | | ????????????????????????????????# ## | | ??????????????????????????####### ### #? | | ??????????????????????????# # ## #?# # | | ?????????? ????????#### ## | | ?????????? ###@ | | ?????????? Y ## | | ?????????? ####### ## | | ?????????? #????###### ##?? | | ???????????# #### #??????????#####??? | | ???????????# ?????## #?????????????????? | | ?????????????????????#### #????????????????? | | ????????????????????????## #????????????????? | | ?????????????????????????# #???????????????? | | ????????????????????????? ##???????????????? | | ????????????????????????? ###????????????????? | | ????????????????????????? #####??????????????????? | | ???????????????????????? #???????????????????????? | | ????????????????????????#????????????????????????? | | ?????????????????????????????????????????????????? | | ?????????????????????????????????????????????????? | | ?????????????????????????????????????????????????? | | ?????????????????????????????????????????????????? | | ?????????????????????????????????????????????????? | | ?????????????????????????????????????????????????? | | ?????????????????????????????????????????????????? | | ?????????????????????????????????????????????????? | | ?????????????????????????????????????????????????? | | ?????????????????????????????????????????????????? | | ?????????????????????????????????????????????????? | +----------------------------------------------------+ Best States ------------- Heat Dissipation 25 Energy Generation 15 Energy Capacity 200 Matter Stores 300 Matter Capacity 300 Sight Range 16 Terrain Scan Range 16 Terrain Scan Density 10 Armor Coverage 150 Evasion (%) 40 Recoil Reduction 2 Item Schematics ----------------- None Robot Schematics ------------------ None Fabricated ------------ Nothing Alien Tech Used ----------------- None Achievements -------------- None Challenges ------------ None Game ------ Seed ResetRocketUnit Manual? 0 Play Time 00:14:00 Cumulative 95.5 hours Start 2024.05.31 @ 17:51:23 End 2024.05.31 @ 18:02:49 Sessions 1 Manual Loads 0 Difficulty Rogue Special Mode None Game No. 163 Rogue 163 Adventurer 0 Explorer 0 Win Type - Total 1 Types 1/0/0/0/0/0/0/0/0 Lore% 42 Gallery% 46 Achievement% 33 Wizard Run 0 Options --------- Layout 1 ASCII 0 Keyboard 1 Movement Numpad Keybinds 0 Fullscreen 1 Font 24/Smallcaps Map View 50x35 Zoom Use 0% Tactical HUD 1 Map Filters NONE Filters NONE Steam 1 RUN: 32c0dfc2-5e04-4a35-bc88-240599bb9bbf